bitfinex-derivatives/quotes_BTCF0:USTF0_20251023
["timestamp","ask_amount","ask_price","bid_price","bid_amount"]
[1761209374740,0.04903549,109730.0,109720.0,1.76623572]
[1761209375335,0.10698549,109740.0,109730.0,0.1036895]
[1761209375537,0.10698549,109740.0,109730.0,1.37144698]
[1761209376639,0.07083549,109740.0,109730.0,1.37244698]
[1761209376937,0.09404549,109740.0,109730.0,1.37244698]
[1761209377132,0.10674549,109740.0,109730.0,1.37344698]
[1761209381835,0.05771,109740.0,109730.0,1.37344698]
[1761209382343,0.05771,109740.0,109730.0,1.2257295]
[1761209382542,0.05771,109740.0,109730.0,1.52184698]
[1761209385339,0.12828867,109750.0,109740.0,0.0973912]
[1761209385545,0.12828867,109750.0,109740.0,1.10059868]
[1761209386743,0.12828867,109750.0,109740.0,1.24865742]
[1761209389251,0.12828867,109750.0,109740.0,1.22865742]
[1761209389546,0.11183293,109750.0,109740.0,1.22865742]
[1761209390446,0.11183293,109750.0,109740.0,1.08059868]
[1761209391040,0.11183293,109750.0,109740.0,1.05059868]
[1761209391748,0.0627,109750.0,109740.0,1.05059868]
[1761209397853,0.0627,109750.0,109740.0,1.07059868]
[1761209400755,0.0627,109750.0,109740.0,1.19865742]
[1761209402652,0.0627,109750.0,109740.0,1.05041]
[1761209402954,0.0627,109750.0,109740.0,1.19881]
[1761209403248,0.0627,109750.0,109740.0,0.90881]
[1761209403447,0.0627,109750.0,109740.0,1.22881]
[1761209403849,0.0048,109750.0,109740.0,1.08041]
[1761209404051,0.04543064,109760.0,109740.0,1.1715112]
[1761209404052,0.08898064,109760.0,109740.0,1.1715112]
[1761209404355,0.08898064,109760.0,109750.0,0.9331573]
[1761209404657,0.08898064,109760.0,109750.0,1.2431573]
[1761209409659,0.05625,109760.0,109750.0,1.2431573]
[1761209414867,0.05625,109760.0,109750.0,1.3915573]
[1761209417167,0.02169,109760.0,109750.0,1.3915573]
[1761209417568,0.04355,109760.0,109750.0,1.3915573]
[1761209418667,0.05733,109760.0,109750.0,1.3915573]
[1761209420470,0.04355,109760.0,109750.0,1.3915573]
[1761209421072,0.02169,109760.0,109750.0,1.3915573]
[1761209421272,0.05733,109760.0,109750.0,1.3915573]
[1761209421972,0.13919357,109760.0,109750.0,1.3915573]
[1761209423175,0.10646293,109760.0,109750.0,1.3915573]
[1761209423475,0.10646293,109760.0,109750.0,1.3978473]
[1761209423476,0.04913293,109760.0,109750.0,1.3978473]
[1761209423973,0.0818821,109760.0,109750.0,1.3978473]
[1761209424270,0.10788293,109760.0,109750.0,0.49338]
[1761209424468,0.67230307,109760.0,109750.0,0.3608]
[1761209424867,0.05747,109750.0,109740.0,0.3608]
[1761209425066,0.12298189,109750.0,109740.0,0.6208]
[1761209425268,0.52298189,109750.0,109740.0,0.6208]
[1761209425465,0.52298189,109750.0,109740.0,0.3608]
[1761209425670,0.05747,109740.0,109730.0,0.3608]
[1761209425875,0.25457255,109740.0,109730.0,0.3608]
[1761209426076,0.65457255,109740.0,109730.0,0.3608]
[1761209426279,0.05747,109730.0,109720.0,0.3699617]
[1761209426471,0.13935551,109730.0,109720.0,0.3699617]
[1761209426675,0.13935551,109730.0,109720.0,0.4610794]
[1761209426976,0.13935551,109730.0,109720.0,0.3699617]
[1761209427369,0.13935551,109730.0,109720.0,0.4610794]
[1761209427666,0.68731991,109730.0,109720.0,0.3608]
[1761209428067,0.50660131,109730.0,109720.0,0.3608]
[1761209428276,0.53934076,109730.0,109720.0,0.46338]
[1761209428471,0.53934076,109730.0,109720.0,0.37338]
[1761209428783,0.68730516,109730.0,109720.0,0.3608]
[1761209428973,0.50660131,109730.0,109720.0,0.3608]
[1761209429277,0.50760131,109730.0,109720.0,0.3608]
[1761209430078,0.54032491,109730.0,109720.0,0.3608]
[1761209430571,0.69754904,109730.0,109720.0,0.3608]
[1761209431376,0.69754904,109730.0,109710.0,0.3608]
[1761209431377,0.05747,109720.0,109710.0,0.3608]
[1761209431576,0.08200766,109720.0,109710.0,0.3608]
[1761209431875,0.45747,109720.0,109710.0,0.38528201]
[1761209434878,0.45847,109720.0,109710.0,0.38528201]
[1761209435683,0.6064344,109720.0,109710.0,0.3608]
[1761209435880,0.05747,109710.0,109700.0,0.38983969]
[1761209436079,0.2054344,109710.0,109700.0,0.38983969]
[1761209436279,0.05747,109710.0,109700.0,0.38983969]
[1761209436480,0.77815,109710.0,109700.0,0.38983969]
[1761209437186,0.9261144,109710.0,109700.0,0.36535768]
[1761209438090,1.2869144,109710.0,109700.0,0.00455768]
[1761209438288,1.4348788,109710.0,109700.0,0.00455768]
[1761209438792,1.50665391,109710.0,109700.0,0.00455768]
[1761209438991,1.50665391,109710.0,109700.0,1e-08]
[1761209439783,1.51065391,109710.0,109700.0,1e-08]
[1761209439987,1.36268951,109710.0,109700.0,1e-08]
[1761209440188,1.35968951,109710.0,109700.0,1e-08]
[1761209440489,1.36268951,109710.0,109700.0,1e-08]
[1761209440685,1.51065391,109710.0,109700.0,1e-08]
[1761209442394,1.50765391,109710.0,109700.0,1e-08]
[1761209442594,1.51065391,109710.0,109700.0,1e-08]
[1761209442994,1.50765391,109710.0,109700.0,1e-08]
[1761209443196,1.51065391,109710.0,109700.0,1e-08]
[1761209446599,0.96268951,109710.0,109700.0,1e-08]
[1761209447599,0.95968951,109710.0,109700.0,1e-08]
[1761209447795,0.96268951,109710.0,109700.0,1e-08]
[1761209449398,0.96168951,109710.0,109700.0,1e-08]
[1761209451102,1.10965391,109710.0,109700.0,1e-08]
[1761209451400,0.96168951,109710.0,109700.0,1e-08]
[1761209452095,1.10965391,109710.0,109700.0,1e-08]
[1761209453195,1.13413509,109710.0,109700.0,1e-08]
[1761209453498,0.96168951,109710.0,109700.0,1e-08]
[1761209453889,1.38617069,109710.0,109700.0,1e-08]
[1761209454089,0.23291558,109710.0,109700.0,0.01258001]
[1761209454290,0.5291944,109710.0,109700.0,0.01258001]
[1761209455794,0.8899944,109710.0,109700.0,0.01258001]
[1761209456103,0.74103,109710.0,109700.0,0.01258001]
[1761209456307,0.82296891,109710.0,109700.0,0.01258001]
[1761209456602,0.82196891,109710.0,109700.0,0.01258001]
[1761209457198,0.97093331,109710.0,109700.0,0.01258001]
[1761209457692,0.97193331,109710.0,109700.0,0.01258001]
[1761209458803,0.96993331,109710.0,109700.0,0.00629001]
[1761209459102,0.97093331,109710.0,109700.0,0.00629001]
[1761209459303,0.82296891,109710.0,109700.0,0.00629001]
[1761209459504,0.97093331,109710.0,109700.0,0.00629001]
[1761209459706,0.61013331,109710.0,109700.0,0.01258001]
[1761209459907,0.46116891,109710.0,109700.0,0.01258001]
[1761209460098,0.38123,109710.0,109700.0,0.01258001]
[1761209460297,0.38023,109710.0,109700.0,0.01258001]
[1761209460502,0.37923,109710.0,109700.0,0.01258001]
[1761209460809,0.12388915,109710.0,109700.0,1.30247881]
[1761209461601,0.12388915,109710.0,109700.0,1.06247881]
[1761209461902,0.12388915,109710.0,109700.0,1.01247881]
[1761209462203,0.12288915,109710.0,109700.0,1.30247881]
[1761209462397,0.06541915,109710.0,109700.0,1.30247881]
[1761209462606,0.04905502,109710.0,109700.0,1.62323881]
[1761209462807,0.04905502,109710.0,109700.0,1.77140789]
[1761209463206,0.04905502,109710.0,109700.0,1.79140789]
[1761209463705,0.04905502,109710.0,109700.0,1.93947463]
[1761209464099,0.04905502,109710.0,109700.0,1.79140789]
[1761209466911,0.04905502,109710.0,109700.0,1.39140789]
[1761209467212,0.04905502,109710.0,109700.0,1.53947463]
[1761209471412,0.04905502,109710.0,109700.0,1.54047463]
[1761209471610,0.08177596,109710.0,109700.0,1.54047463]
[1761209471812,0.10085915,109720.0,109710.0,0.0911209]
[1761209472117,0.12297915,109720.0,109710.0,1.06063438]
[1761209472710,0.12297915,109720.0,109710.0,1.04063438]
[1761209473111,0.13949891,109720.0,109710.0,1.04063438]
[1761209474109,0.13949891,109720.0,109710.0,1.04958668]
[1761209474921,0.13949891,109720.0,109710.0,0.66151994]
[1761209475117,0.13949891,109720.0,109710.0,0.62151994]
[1761209475322,0.13949891,109720.0,109710.0,0.71151994]
[1761209475622,0.13949891,109720.0,109710.0,0.70151994]
[1761209475822,0.13949891,109720.0,109710.0,0.93151994]
[1761209476022,0.13949891,109720.0,109710.0,0.71151994]
[1761209476224,0.13949891,109720.0,109710.0,0.62151994]
[1761209476422,0.13949891,109720.0,109710.0,0.93151994]
[1761209476722,0.28756565,109720.0,109710.0,0.85039904]
[1761209476919,0.13949891,109720.0,109710.0,0.94152514]
[1761209477418,0.68756565,109720.0,109710.0,0.36709]
[1761209477723,0.68756565,109720.0,109710.0,0.52144674]
[1761209478320,0.68756565,109720.0,109710.0,0.50886674]
[1761209478521,0.68756565,109720.0,109710.0,0.36709]
[1761209478724,0.68756565,109720.0,109710.0,0.51515674]
[1761209479118,0.68756565,109720.0,109710.0,0.3608]
[1761209479322,0.75369348,109720.0,109710.0,0.3608]
[1761209479523,0.72125024,109720.0,109710.0,0.3608]
[1761209480116,0.95108986,109720.0,109710.0,0.3608]
[1761209480321,0.68839962,109720.0,109710.0,0.3608]
[1761209480824,0.60662674,109720.0,109710.0,0.3608]
[1761209481225,0.05756,109710.0,109700.0,0.50920001]
[1761209481524,0.28740407,109710.0,109700.0,0.50920001]
[1761209481933,0.61472602,109710.0,109700.0,0.14840001]
[1761209482116,0.69650335,109710.0,109700.0,0.14840001]
[1761209482525,0.69650335,109710.0,109700.0,1e-08]
[1761209482721,0.68014909,109710.0,109700.0,1e-08]
[1761209483629,0.27104981,109710.0,109700.0,1e-08]
[1761209484335,0.67104981,109710.0,109700.0,0.01258001]
[1761209484520,0.27104981,109710.0,109700.0,0.16064675]
[1761209484718,0.27104981,109710.0,109700.0,0.52144675]
[1761209486030,0.27104981,109710.0,109700.0,0.61258115]
[1761209486329,0.12298307,109710.0,109700.0,0.61258115]
[1761209486527,0.27104981,109710.0,109700.0,0.61258115]
[1761209487227,0.27104981,109710.0,109700.0,0.52144675]
[1761209487826,0.27104981,109710.0,109700.0,0.77144675]
[1761209488026,0.27104981,109710.0,109700.0,0.86258115]
[1761209488727,0.27104981,109710.0,109700.0,0.61258115]
[1761209489427,0.27104981,109710.0,109700.0,0.52144675]
[1761209490334,0.28740407,109710.0,109700.0,0.52144675]
[1761209490524,0.28740407,109710.0,109700.0,0.61258115]
[1761209491126,0.06552387,109710.0,109700.0,1.80132789]
[1761209491530,0.12362387,109710.0,109700.0,1.80132789]
[1761209492420,0.12345387,109720.0,109710.0,0.0911261]
[1761209492625,0.12345387,109720.0,109710.0,0.95257284]
[1761209493632,0.08687387,109720.0,109710.0,0.95257284]
[1761209493835,0.10971387,109720.0,109710.0,0.95257284]
[1761209494334,0.12362387,109720.0,109710.0,0.95257284]
[1761209498738,0.27169061,109720.0,109710.0,0.57144674]
[1761209498928,0.20616674,109720.0,109710.0,0.37338]
[1761209499128,0.28794407,109720.0,109710.0,0.37338]
[1761209500439,0.28894407,109720.0,109710.0,0.37338]
[1761209500638,0.28894407,109720.0,109710.0,0.4645061]
[1761209500938,0.28894407,109720.0,109710.0,0.61257284]
[1761209501238,0.28894407,109720.0,109710.0,0.64257284]
[1761209501437,0.14087733,109720.0,109710.0,0.91257284]
[1761209502034,0.14087733,109720.0,109710.0,0.61257284]
[1761209502435,0.0591,109720.0,109710.0,0.85257284]
[1761209503336,0.0591,109720.0,109710.0,0.61257284]
[1761209503634,0.0591,109720.0,109710.0,0.52144674]
[1761209503841,0.20716674,109720.0,109710.0,0.61257284]
[1761209504939,0.0591,109720.0,109710.0,0.61257284]
[1761209505141,0.20716674,109720.0,109710.0,0.61257284]
[1761209506442,0.20716674,109720.0,109710.0,0.86257284]
[1761209506849,0.20716674,109720.0,109710.0,0.61257284]
[1761209507546,0.20716674,109720.0,109710.0,0.90257284]
[1761209507946,0.20716674,109720.0,109710.0,0.61257284]
[1761209509246,0.28894407,109720.0,109710.0,0.61257284]
[1761209510840,0.28894407,109720.0,109710.0,0.87257284]
[1761209511543,0.28894407,109720.0,109710.0,0.61257284]
[1761209511750,0.28894407,109720.0,109710.0,0.65257284]
[1761209511952,0.1737235,109720.0,109710.0,0.89257284]
[1761209512250,0.1737235,109720.0,109710.0,0.69257284]
[1761209512551,0.23928821,109720.0,109710.0,0.94257284]
[1761209512741,0.23928821,109720.0,109710.0,0.91257284]
[1761209512742,0.12466471,109720.0,109710.0,0.91257284]
[1761209513245,0.0591,109720.0,109710.0,0.91257284]
[1761209513550,0.12466471,109720.0,109710.0,0.65257284]
[1761209513751,0.12466471,109720.0,109710.0,0.95257284]
[1761209514052,0.12366471,109720.0,109710.0,0.95257284]
[1761209514349,0.0581,109720.0,109710.0,0.95257284]
[1761209514544,0.59174145,109730.0,109710.0,0.70257284]
[1761209514740,0.59174145,109730.0,109720.0,0.52144674]
[1761209514937,0.44367471,109730.0,109720.0,0.52144674]
[1761209515155,0.27106145,109730.0,109720.0,0.82144674]
[1761209515466,0.27106145,109730.0,109720.0,0.52144674]
[1761209516050,0.27106145,109730.0,109720.0,0.37338]
[1761209516253,0.27306145,109730.0,109720.0,0.37338]
[1761209516752,0.27406145,109730.0,109720.0,0.37338]
[1761209517049,0.27406145,109730.0,109720.0,0.52144674]
[1761209517450,0.27306145,109730.0,109720.0,0.61256454]
[1761209517754,0.27406145,109730.0,109720.0,0.65256454]
[1761209518351,0.27406145,109730.0,109720.0,0.90256454]
[1761209518551,0.27406145,109730.0,109720.0,0.61256454]
[1761209518854,0.27406145,109730.0,109720.0,0.89256454]
[1761209519244,0.27206145,109730.0,109720.0,0.64256454]
[1761209519441,0.27306145,109730.0,109720.0,0.61256454]
[1761209519653,0.27306145,109730.0,109720.0,0.52144674]
[1761209519851,0.27206145,109730.0,109720.0,0.61256454]
[1761209520047,0.27306145,109730.0,109720.0,0.52144674]
[1761209520551,0.27206145,109730.0,109720.0,0.37338]
[1761209520947,0.27306145,109730.0,109720.0,0.7544978]
[1761209521153,0.27306145,109730.0,109720.0,0.61256454]
[1761209521154,0.20749674,109730.0,109720.0,0.61256454]
[1761209521348,0.28945262,109730.0,109720.0,0.7144978]
[1761209521544,0.28945262,109730.0,109720.0,0.61256454]
[1761209521744,0.28945262,109730.0,109720.0,0.64256454]
[1761209521954,0.27299926,109730.0,109720.0,0.64256454]
[1761209522149,0.27299926,109730.0,109720.0,0.65256454]
[1761209522341,0.27399926,109730.0,109720.0,0.65256454]
[1761209522546,0.27399926,109730.0,109720.0,0.95256454]
[1761209522849,0.27299926,109730.0,109720.0,0.65256454]
[1761209523051,0.44557252,109730.0,109720.0,0.65256454]
[1761209523249,0.44357252,109730.0,109720.0,0.61256454]
[1761209523455,0.59263926,109730.0,109720.0,0.61256454]
[1761209523646,0.59263926,109730.0,109720.0,0.4644978]
[1761209524054,0.59263926,109730.0,109720.0,0.61256454]
[1761209524654,0.44457252,109730.0,109720.0,0.4644978]
[1761209525254,0.12393252,109730.0,109720.0,0.4644978]
[1761209525753,0.12393252,109730.0,109720.0,0.37338]
[1761209525754,0.27201814,109730.0,109720.0,0.37338]
[1761209526052,0.27201814,109730.0,109720.0,0.00629]
[1761209526257,0.05656,109720.0,109710.0,0.37338]
[1761209526448,0.57439073,109720.0,109710.0,0.01258]
[1761209526755,0.59078814,109720.0,109710.0,0.00629]
[1761209526957,0.59078814,109720.0,109710.0,0.01258]
[1761209528160,0.59078814,109720.0,109700.0,0.37338001]
[1761209528161,0.05656,109710.0,109700.0,0.37338001]
[1761209528455,0.2537506,109710.0,109700.0,0.00629001]
[1761209528653,0.6537506,109710.0,109700.0,1e-08]
[1761209531057,0.66266919,109710.0,109700.0,1e-08]
[1761209531261,0.2537506,109710.0,109700.0,1e-08]
[1761209534756,0.26292685,109710.0,109700.0,1e-08]
[1761209538765,0.26292685,109710.0,109700.0,0.05258001]
[1761209538766,0.10566498,109710.0,109700.0,0.05258001]
[1761209538966,0.10566498,109710.0,109700.0,0.01258001]
[1761209539168,0.2537506,109710.0,109700.0,0.01258001]
[1761209540368,0.26273941,109710.0,109700.0,0.10371441]
[1761209540574,0.11465379,109710.0,109700.0,0.21371441]
[1761209540774,0.10566498,109710.0,109700.0,0.39371441]
[1761209540971,0.10566498,109710.0,109700.0,0.10371441]
[1761209541171,0.10566498,109710.0,109700.0,0.69180003]
[1761209541367,0.45910198,109710.0,109700.0,0.68180003]
[1761209541670,0.45910198,109710.0,109700.0,0.78180003]
[1761209541877,0.42634498,109710.0,109700.0,1.05260003]
[1761209542070,0.45910339,109710.0,109700.0,1.05260003]
[1761209542574,0.13842339,109710.0,109700.0,1.31260003]
[1761209545176,0.13842339,109710.0,109700.0,0.92146563]
[1761209545375,0.13842339,109710.0,109700.0,0.77338001]
[1761209545577,0.13842339,109710.0,109700.0,0.86451441]
[1761209545780,0.13842339,109710.0,109700.0,0.89451441]
[1761209545980,0.13842339,109710.0,109700.0,0.86451441]
[1761209546187,0.13842339,109710.0,109700.0,0.90451441]
[1761209546783,0.13842339,109710.0,109700.0,0.89451441]
[1761209547082,0.13842339,109710.0,109700.0,1.08451441]
[1761209547269,0.10566498,109710.0,109700.0,1.08451441]
[1761209548280,0.13843157,109710.0,109700.0,0.86451441]
[1761209548481,0.05656,109710.0,109700.0,0.86451441]
[1761209548978,0.05656,109710.0,109700.0,1.10451441]
[1761209551489,0.05656,109710.0,109700.0,0.86451441]
[1761209551679,0.05656,109710.0,109700.0,1.18451441]
[1761209552290,0.05656,109710.0,109700.0,0.82371441]
[1761209552484,0.05656,109710.0,109700.0,1.18451441]
[1761209553087,0.12206252,109710.0,109700.0,1.18451441]
[1761209554388,0.12206252,109710.0,109700.0,0.86451441]
[1761209554590,0.12206252,109710.0,109700.0,1.14451441]
[1761209555088,0.12206252,109710.0,109700.0,0.89451441]
[1761209555288,0.12206252,109710.0,109700.0,0.86451441]
[1761209555790,0.12206252,109710.0,109700.0,1.17451441]
[1761209558190,0.12206252,109710.0,109700.0,0.81371441]
[1761209558394,0.12206252,109710.0,109700.0,0.86451441]
[1761209558596,0.12206252,109710.0,109700.0,1.19451441]
[1761209560796,0.12206252,109710.0,109700.0,0.95451441]
[1761209561091,0.1835884,109720.0,109710.0,0.0911261]
[1761209561300,0.12457252,109720.0,109710.0,0.71259172]
[1761209561490,0.12457252,109720.0,109710.0,0.61259172]
[1761209561690,0.12457252,109720.0,109710.0,0.95259172]
[1761209561891,0.05907,109720.0,109710.0,0.95259172]
[1761209562092,0.14102588,109720.0,109710.0,0.90259172]
[1761209562288,0.14202588,109720.0,109710.0,0.90259172]
[1761209562488,0.14202588,109720.0,109710.0,0.70259172]
[1761209562896,0.14202588,109720.0,109710.0,0.61259172]
[1761209563096,0.14202588,109720.0,109710.0,1.27323172]
[1761209563696,0.10623588,109720.0,109710.0,1.27952172]
[1761209564096,0.12917588,109720.0,109710.0,1.27323172]
[1761209564297,0.14196588,109720.0,109710.0,0.93323172]
[1761209564695,0.14196588,109720.0,109710.0,1.01323172]
[1761209564894,0.14196588,109720.0,109710.0,0.96323172]
[1761209565096,0.14196588,109720.0,109710.0,0.93323172]
[1761209565296,0.14196588,109720.0,109710.0,0.97323172]
[1761209565601,0.14196588,109720.0,109710.0,0.7851461]
[1761209565800,0.14196588,109720.0,109710.0,0.8151461]
[1761209566297,0.14196588,109720.0,109710.0,1.1151461]
[1761209566602,0.14196588,109720.0,109710.0,0.8351461]
[1761209566803,0.14196588,109720.0,109710.0,1.26323172]
[1761209567099,0.14196588,109720.0,109710.0,1.01323172]
[1761209567403,0.14196588,109720.0,109710.0,1.24323172]
[1761209567704,0.14196588,109720.0,109710.0,1.01323172]
[1761209567903,0.14196588,109720.0,109710.0,0.93323172]
[1761209568104,0.14196588,109720.0,109710.0,1.01323172]
[1761209568308,0.14196588,109720.0,109710.0,0.93323172]
[1761209568612,0.14196588,109720.0,109710.0,1.02323172]
[1761209569104,0.14196588,109720.0,109710.0,1.01323172]
[1761209569799,0.14196588,109720.0,109710.0,1.24323172]
[1761209570202,0.06001,109720.0,109710.0,1.24323172]
[1761209570905,0.06001,109720.0,109710.0,0.98323172]
[1761209571103,0.06001,109720.0,109710.0,0.93323172]
[1761209571305,0.06001,109720.0,109710.0,1.01323172]
[1761209571607,0.05901,109720.0,109710.0,0.93323172]
[1761209571903,0.12458245,109720.0,109710.0,1.21323172]
[1761209572496,0.12458245,109720.0,109710.0,0.97323172]
[1761209572696,0.12458245,109720.0,109710.0,1.22323172]
[1761209572897,0.12458245,109720.0,109710.0,1.0751461]
[1761209573099,0.12458245,109720.0,109710.0,1.22323172]
[1761209573501,0.12458245,109720.0,109710.0,1.24323172]
[1761209574202,0.12458245,109720.0,109710.0,1.02323172]
[1761209575007,0.12458245,109720.0,109710.0,1.25323172]
[1761209575304,0.12458245,109720.0,109710.0,1.01323172]
[1761209575704,0.12458245,109720.0,109710.0,1.21323172]
[1761209575909,0.12458245,109720.0,109710.0,0.98323172]
[1761209576107,0.12458245,109720.0,109710.0,0.93323172]
[1761209576604,0.12458245,109720.0,109710.0,1.21323172]
[1761209576801,0.12458245,109720.0,109710.0,1.01323172]
[1761209577104,0.12458245,109720.0,109710.0,1.06323172]
[1761209577304,0.05901,109720.0,109710.0,1.06323172]
[1761209577505,0.05901,109720.0,109710.0,1.22323172]
[1761209577806,0.05901,109720.0,109710.0,1.03323172]
[1761209578109,0.05901,109720.0,109710.0,1.21323172]
[1761209578404,0.02328,109720.0,109710.0,1.21323172]
[1761209578703,0.0949588,109720.0,109710.0,1.21323172]
[1761209579203,0.1085688,109720.0,109710.0,1.21323172]
[1761209583605,0.1085688,109720.0,109710.0,0.98323172]
[1761209583806,0.1085688,109720.0,109710.0,1.22323172]
[1761209584002,0.1085688,109720.0,109710.0,1.25323172]
[1761209584710,0.1085688,109720.0,109710.0,0.93323043]
[1761209584904,0.1085688,109720.0,109710.0,1.26323043]
[1761209585708,0.1085688,109720.0,109710.0,0.98323043]
[1761209586704,0.0449588,109720.0,109710.0,1.02323043]
[1761209586915,0.0669688,109720.0,109710.0,1.28487043]
[1761209588307,0.0224388,109720.0,109710.0,1.28487043]
[1761209590506,0.0224388,109720.0,109710.0,1.43295476]
[1761209590702,0.0224388,109720.0,109710.0,1.28487043]
[1761209591402,0.0224388,109720.0,109710.0,1.22487043]
[1761209593210,0.0224388,109720.0,109710.0,1.27487043]
[1761209593509,0.0669688,109720.0,109710.0,1.23487043]
[1761209594008,0.0669688,109720.0,109710.0,1.23486273]
[1761209594198,0.04453,109720.0,109710.0,1.23486273]
[1761209594509,0.04453,109720.0,109710.0,1.03486273]
[1761209594710,0.04453,109720.0,109710.0,1.26486273]
[1761209598112,0.11010245,109720.0,109710.0,1.26486273]
[1761209599412,0.11010245,109720.0,109710.0,1.27486273]
[1761209600807,0.06557245,109720.0,109710.0,1.27486273]
[1761209601013,0.44446245,109730.0,109720.0,0.1356405]
[1761209601204,0.44446245,109730.0,109720.0,0.96452483]
[1761209601410,0.44446245,109730.0,109720.0,0.55341433]
[1761209601616,0.59254678,109730.0,109720.0,0.55341433]
[1761209601910,0.60893021,109730.0,109720.0,0.64452483]
[1761209602105,0.60993021,109730.0,109720.0,0.91452483]
[1761209603111,0.60993021,109730.0,109720.0,0.64452483]
[1761209603318,0.60993021,109730.0,109720.0,0.89452483]
[1761209604011,0.60993021,109730.0,109720.0,0.68452483]
[1761209604317,0.60993021,109730.0,109720.0,0.67452483]
[1761209604613,0.46184588,109730.0,109720.0,0.64452483]
[1761209605414,0.46184588,109730.0,109720.0,0.90452483]
[1761209605713,0.46184588,109730.0,109720.0,0.67452483]
[1761209606315,0.46184588,109730.0,109720.0,0.88452483]
[1761209606924,0.60993021,109730.0,109720.0,0.64452483]
[1761209607110,0.60993021,109730.0,109720.0,0.94452483]
[1761209607309,0.46184588,109730.0,109720.0,0.64452483]
[1761209607511,0.60993021,109730.0,109720.0,0.97452483]
[1761209607717,0.60993021,109730.0,109720.0,0.69452483]
[1761209608222,0.46184588,109730.0,109720.0,0.72452483]
[1761209608410,0.14120588,109730.0,109720.0,0.93452483]
[1761209608608,0.14120588,109730.0,109720.0,0.72452483]
[1761209608810,0.14120588,109730.0,109720.0,0.98452483]
[1761209609225,0.14120588,109730.0,109720.0,0.69452483]
[1761209609421,0.14120588,109730.0,109720.0,0.95452483]
[1761209611121,0.14120588,109730.0,109720.0,0.9637124]
[1761209611818,0.12748588,109730.0,109720.0,0.6537124]
[1761209612022,0.06660819,109730.0,109720.0,1.11179673]
[1761209612229,0.06660819,109730.0,109720.0,1.51179673]
[1761209612922,0.11157819,109730.0,109720.0,0.50562807]
[1761209613119,0.12464819,109730.0,109720.0,0.81562887]
[1761209613323,0.12464819,109730.0,109720.0,0.9637132]
[1761209613622,0.10823468,109730.0,109720.0,0.9437132]
[1761209613822,0.07282468,109730.0,109720.0,1.09179753]
[1761209614025,0.07282468,109730.0,109720.0,0.9937132]
[1761209614218,0.07282468,109730.0,109720.0,0.6537132]
[1761209614418,0.07282468,109730.0,109720.0,0.9837132]
[1761209614614,0.07282468,109730.0,109720.0,0.88179753]
[1761209614828,0.07282468,109730.0,109720.0,0.8537132]
[1761209615125,0.07282468,109730.0,109720.0,1.00179753]
[1761209616934,0.05019468,109730.0,109720.0,1.00179753]
[1761209620040,0.001,109730.0,109720.0,1.00179753]
[1761209621031,0.05018161,109730.0,109720.0,1.00179753]
[1761209622041,0.001,109730.0,109720.0,1.00179753]
[1761209623341,0.05017338,109730.0,109720.0,1.00179753]
[1761209624841,0.05017338,109730.0,109720.0,1.40179753]
[1761209625046,0.04561572,109730.0,109720.0,1.40179753]
[1761209625541,0.03277955,109730.0,109720.0,1.40808753]
[1761209628649,0.03277955,109730.0,109720.0,1.55648753]
[1761209628947,0.03277955,109730.0,109720.0,1.58109785]
[1761209628948,0.02458316,109730.0,109720.0,1.58109785]
[1761209630351,0.03277955,109740.0,109730.0,0.1348539]
[1761209630550,0.05540955,109740.0,109730.0,1.27413823]
[1761209631649,0.07874955,109740.0,109730.0,1.27413823]
[1761209631849,0.07974955,109740.0,109730.0,1.27413823]
[1761209632050,0.01307,109720.0,109700.0,0.02461033]
[1761209632243,0.41981685,109710.0,109700.0,1e-08]
[1761209632442,1.18061685,109710.0,109700.0,1e-08]
[1761209632638,1.43600866,109710.0,109700.0,1e-08]
[1761209632845,1.51796454,109710.0,109700.0,1e-08]
[1761209633245,1.43600866,109710.0,109700.0,1e-08]
[1761209633444,1.51780309,109710.0,109700.0,1e-08]
[1761209633644,1.51780309,109710.0,109700.0,0.00100001]
[1761209633844,0.0578,109690.0,109680.0,0.40569]
[1761209634045,0.27132107,109690.0,109680.0,0.40569]
[1761209634348,0.20588433,109690.0,109680.0,0.40569]
[1761209635054,0.20588433,109690.0,109680.0,0.61569]
[1761209635355,0.20588433,109690.0,109680.0,0.40569]
[1761209636658,0.20688433,109690.0,109680.0,0.40569]
[1761209637359,0.23953428,109690.0,109680.0,0.40569]
[1761209642159,0.23133592,109690.0,109680.0,0.40569]
[1761209643262,0.20688433,109690.0,109680.0,0.40569]
[1761209644762,0.20700434,109690.0,109680.0,0.40569]
[1761209647762,0.20700434,109690.0,109680.0,0.04489]
[1761209647963,0.20700434,109690.0,109680.0,0.40569]
[1761209649456,0.23145593,109690.0,109680.0,0.40569]
[1761209650161,0.23145593,109690.0,109680.0,0.3608]
[1761209650359,0.0578,109670.0,109660.0,0.32551934]
[1761209650556,0.0578,109650.0,109640.0,0.00011223]
[1761209650859,0.35420868,109650.0,109620.0,0.004561]
[1761209651061,0.20600434,109630.0,109620.0,0.508411]
[1761209651458,0.20600434,109630.0,109620.0,0.869211]
[1761209651966,0.20607442,109630.0,109620.0,0.410251]
[1761209652462,0.05787008,109630.0,109620.0,0.410251]
[1761209652665,0.20607442,109630.0,109620.0,0.410251]
[1761209653465,0.20607442,109630.0,109620.0,0.411251]
[1761209654165,0.20607442,109630.0,109620.0,0.410251]
[1761209654662,0.60607442,109630.0,109620.0,0.410251]
[1761209655361,0.45787008,109630.0,109620.0,0.410251]
[1761209655559,0.05787008,109630.0,109620.0,0.410251]
[1761209655760,0.20607442,109630.0,109620.0,0.410251]
[1761209656462,0.20707442,109630.0,109620.0,0.410251]
[1761209656764,0.20807442,109630.0,109620.0,0.410251]
[1761209657466,0.20707442,109630.0,109620.0,0.410251]
[1761209659365,0.20607442,109630.0,109620.0,0.410251]
[1761209659762,0.05787008,109630.0,109620.0,0.7614455]
[1761209659963,0.02294008,109630.0,109620.0,0.5630855]
[1761209660165,0.05787008,109630.0,109620.0,0.7914456]
[1761209662262,0.05787008,109630.0,109620.0,0.5014456]
[1761209662574,0.23050697,109630.0,109620.0,0.5014483]
[1761209662872,0.23050697,109630.0,109620.0,0.7814483]
[1761209664368,0.23050697,109630.0,109620.0,0.5014483]
[1761209666171,0.08230263,109630.0,109620.0,0.5014483]
[1761209666370,0.23050697,109630.0,109620.0,0.5014483]
[1761209668072,0.26308371,109630.0,109620.0,0.5014483]
[1761209669872,0.23050697,109630.0,109620.0,0.5014483]
[1761209670764,0.17348893,109630.0,109620.0,0.5014483]
[1761209671065,0.32169327,109630.0,109620.0,0.5014483]
[1761209671367,0.32169327,109630.0,109620.0,0.410251]
[1761209671675,0.37870257,109630.0,109620.0,0.410251]
[1761209674366,0.34612583,109630.0,109620.0,0.410251]
[1761209675977,0.66764583,109630.0,109620.0,0.410251]
[1761209676170,0.68887063,109630.0,109620.0,0.410251]
[1761209678382,0.64000552,109630.0,109620.0,0.410251]